bitfinex-derivatives/quotes_BTCF0:USTF0_20250724
["timestamp","ask_amount","ask_price","bid_price","bid_amount"]
[1753343099385,1.5,118280.0,118270.0,1.84106522]
[1753343099775,0.24589474,118300.0,118290.0,0.05927]
[1753343099776,0.07291654,118300.0,118290.0,0.05927]
[1753343099988,0.32033184,118300.0,118290.0,1.55738976]
[1753343100189,0.34199184,118300.0,118290.0,1.55738976]
[1753343100390,0.38823964,118300.0,118290.0,1.55738976]
[1753343101090,0.39023964,118300.0,118290.0,1.55738976]
[1753343107186,0.39023964,118300.0,118290.0,1.273743]
[1753343107386,0.39023964,118300.0,118290.0,1.55738976]
[1753343107793,0.39023964,118300.0,118290.0,0.95946976]
[1753343107994,0.39023964,118300.0,118290.0,1.55782976]
[1753343108290,0.39023964,118300.0,118290.0,0.59836]
[1753343108493,0.316013,118290.0,118280.0,0.50704]
[1753343108688,0.316013,118290.0,118280.0,1.38912676]
[1753343108894,0.316013,118290.0,118280.0,1.55812406]
[1753343109189,0.316013,118290.0,118280.0,1.38912676]
[1753343109488,0.316013,118290.0,118280.0,1.55812406]
[1753343109987,0.316013,118290.0,118280.0,0.95968406]
[1753343110188,0.316013,118290.0,118280.0,1.55828406]
[1753343111194,0.316013,118290.0,118280.0,1.84193082]
[1753343111401,0.317013,118290.0,118280.0,1.84193082]
[1753343111693,0.317013,118290.0,118280.0,1.55844406]
[1753343114296,0.14803,118290.0,118280.0,1.55844406]
[1753343114489,0.2889131,118290.0,118280.0,1.84209082]
[1753343114691,0.1699831,118290.0,118280.0,1.84209082]
[1753343115297,0.001,118290.0,118280.0,1.84209082]
[1753343115687,0.1699831,118290.0,118280.0,1.84209082]
[1753343116089,1.6699831,118290.0,118280.0,1.84209082]
[1753343116497,1.669983,118290.0,118280.0,1.84209082]
[1753343116990,1.501,118290.0,118280.0,1.84209082]
[1753343117196,1.669983,118290.0,118280.0,1.84209082]
[1753343119299,1.669983,118290.0,118280.0,1.24333082]
[1753343119500,1.669983,118290.0,118280.0,1.84201082]
[1753343120505,1.669983,118290.0,118280.0,1.24333082]
[1753343120799,1.669983,118290.0,118280.0,1.84201082]
[1753343123308,1.669983,118290.0,118280.0,1.2747173]
[1753343123497,1.757303,118290.0,118280.0,1.84201082]
[1753343125503,1.757303,118290.0,118280.0,1.55836406]
[1753343125705,1.757303,118290.0,118280.0,1.2747173]
[1753343125899,1.757303,118290.0,118270.0,0.20638279]
[1753343125900,0.3160273,118280.0,118270.0,0.20638279]
[1753343126093,0.3160273,118280.0,118270.0,0.74468]
[1753343126296,0.3160273,118280.0,118270.0,0.61579]
[1753343126500,0.3160273,118280.0,118270.0,1.55813826]
[1753343126897,0.3160273,118280.0,118270.0,1.19733826]
[1753343127104,0.3160273,118280.0,118270.0,1.55813826]
[1753343127499,0.3160273,118280.0,118270.0,1.19733826]
[1753343128000,0.3160273,118280.0,118270.0,1.55813826]
[1753343128201,0.3160273,118280.0,118270.0,0.95969826]
[1753343128403,0.3160273,118280.0,118270.0,1.55861826]
[1753343129308,0.14703,118280.0,118270.0,1.55861826]
[1753343129509,0.3160273,118280.0,118270.0,1.55869826]
[1753343130394,0.3160273,118280.0,118270.0,1.2750515]
[1753343130598,0.3160273,118280.0,118270.0,1.55869826]
[1753343131001,0.33500459,118280.0,118270.0,1.55869826]
[1753343131401,0.33500095,118280.0,118270.0,1.55869826]
[1753343132207,0.3160273,118280.0,118270.0,1.55869826]
[1753343132413,0.3160273,118280.0,118270.0,1.2750515]
[1753343132711,0.3160273,118280.0,118270.0,1.55869826]
[1753343134910,0.3160273,118280.0,118270.0,1.2750515]
[1753343135215,0.3160273,118280.0,118270.0,1.55869826]
[1753343136913,0.3160273,118280.0,118270.0,0.95969826]
[1753343137112,0.3160273,118280.0,118270.0,1.55897826]
[1753343137419,0.3160273,118280.0,118270.0,1.55897836]
[1753343137712,1.8160273,118280.0,118270.0,1.55897836]
[1753343140410,0.3017101,118250.0,118240.0,0.06014279]
[1753343140613,0.3017244,118240.0,118230.0,0.10018]
[1753343140809,0.94617116,118240.0,118230.0,0.7452]
[1753343141009,0.6625244,118240.0,118230.0,0.7452]
[1753343141617,0.6146244,118240.0,118230.0,1.02884676]
[1753343141808,0.63409167,118240.0,118230.0,1.02884676]
[1753343142009,0.27329167,118240.0,118230.0,1.38964676]
[1753343142311,0.1690544,118240.0,118230.0,1.55875546]
[1753343142617,0.1690544,118240.0,118230.0,0.95787546]
[1753343142817,0.1690544,118240.0,118230.0,1.55883546]
[1753343143017,0.1690544,118240.0,118230.0,1.56183546]
[1753343143218,0.1690544,118240.0,118230.0,1.56483546]
[1753343144118,0.1690544,118240.0,118230.0,0.96387546]
[1753343144420,0.1690544,118240.0,118230.0,1.56467546]
[1753343144918,0.23636486,118240.0,118230.0,1.56467546]
[1753343145123,0.06731046,118240.0,118230.0,1.56467546]
[1753343145319,0.295839,118250.0,118240.0,0.2260144]
[1753343145625,0.295839,118250.0,118240.0,0.95786116]
[1753343146121,0.1690505,118250.0,118240.0,0.95786116]
[1753343146317,0.1690505,118250.0,118240.0,1.24350792]
[1753343146519,0.1690505,118250.0,118240.0,1.55994116]
[1753343146710,0.0691842,118270.0,118250.0,0.14436]
[1753343146913,0.36032523,118270.0,118260.0,1.55787266]
[1753343147225,0.24888373,118270.0,118260.0,1.55787266]
[1753343147428,0.18931953,118270.0,118260.0,1.55787266]
[1753343148118,0.1690259,118270.0,118260.0,1.55787266]
[1753343149013,0.1690259,118270.0,118260.0,1.55887266]
[1753343149216,0.1690259,118270.0,118260.0,1.55987266]
[1753343150828,0.1690259,118270.0,118260.0,1.56831901]
[1753343153826,0.1690259,118270.0,118260.0,1.55987266]
[1753343155135,0.1690259,118270.0,118260.0,0.95983266]
[1753343155325,0.2132659,118270.0,118260.0,1.55875266]
[1753343155525,0.58534266,118270.0,118260.0,0.74516]
[1753343155731,0.3016959,118270.0,118260.0,0.74516]
[1753343156222,0.59370487,118270.0,118260.0,0.74508]
[1753343156426,0.31005811,118270.0,118260.0,0.74508]
[1753343156934,0.31005811,118270.0,118260.0,0.14636]
[1753343157122,0.31005811,118270.0,118260.0,0.74496]
[1753343157326,0.3016959,118270.0,118260.0,0.74496]
[1753343158335,0.3016959,118270.0,118260.0,0.14636]
[1753343158532,0.3016959,118270.0,118260.0,0.74484]
[1753343159133,0.3016959,118270.0,118260.0,0.74452]
[1753343159434,0.94614266,118270.0,118260.0,0.65995]
[1753343160035,0.94614266,118270.0,118260.0,0.67709]
[1753343160230,0.6624959,118270.0,118260.0,0.71691]
[1753343160432,0.6145959,118270.0,118260.0,1.19707256]
[1753343160734,0.2537959,118270.0,118260.0,1.55799256]
[1753343161234,0.2537959,118270.0,118260.0,1.02816676]
[1753343161436,0.2537959,118270.0,118260.0,1.19719256]
[1753343162637,0.2537959,118270.0,118260.0,1.02816676]
[1753343163837,0.2537959,118270.0,118260.0,0.59903256]
[1753343164041,0.2537959,118270.0,118260.0,1.19679256]
[1753343164536,0.2537959,118270.0,118260.0,1.02776676]
[1753343164740,0.3032559,118270.0,118260.0,1.02760676]
[1753343166941,0.3032559,118270.0,118260.0,1.02704676]
[1753343168040,0.2537959,118270.0,118260.0,1.02704676]
[1753343168941,0.2537959,118270.0,118260.0,1.02668676]
[1753343169143,0.2537959,118270.0,118260.0,1.19571256]
[1753343169944,0.2537959,118270.0,118260.0,1.02668676]
[1753343172144,0.27404281,118270.0,118260.0,1.02668676]
[1753343172743,0.30264281,118270.0,118260.0,1.02668676]
[1753343173042,0.30264281,118270.0,118260.0,1.19571256]
[1753343174841,0.32350281,118270.0,118260.0,1.02596676]
[1753343175637,0.32350281,118270.0,118260.0,0.43000676]
[1753343175837,0.32350281,118270.0,118260.0,1.02544676]
[1753343177547,0.68430281,118270.0,118260.0,1.02544676]
[1753343178048,0.68430281,118270.0,118260.0,0.43000676]
[1753343178250,0.68430281,118270.0,118260.0,1.02544676]
[1753343180749,0.68430281,118270.0,118260.0,0.7418]
[1753343180948,0.68430281,118270.0,118260.0,1.02544676]
[1753343183845,0.68430281,118270.0,118260.0,0.14636]
[1753343184046,0.1948544,118240.0,118230.0,0.32257676]
[1753343184353,0.3147544,118240.0,118230.0,1.10439546]
[1753343184541,0.3147544,118240.0,118230.0,1.13257546]
[1753343185246,0.3147544,118240.0,118230.0,0.53713546]
[1753343185448,0.6755544,118240.0,118230.0,1.13257546]
[1753343185648,0.6755544,118240.0,118230.0,0.8519287]
[1753343185848,0.6755544,118240.0,118230.0,1.13557546]
[1753343186047,0.6755544,118240.0,118230.0,1.19707546]
[1753343186242,0.6755544,118240.0,118230.0,0.14892]
[1753343186447,0.5920444,118240.0,118230.0,1.19707546]
[1753343186642,0.6486844,118240.0,118230.0,1.19707546]
[1753343186852,0.6755544,118240.0,118230.0,1.02700676]
[1753343187050,0.96765451,118240.0,118230.0,0.74336]
[1753343187848,1.05543226,118240.0,118230.0,0.74336]
[1753343188249,0.7717855,118240.0,118230.0,0.74336]
[1753343189460,0.74299895,118240.0,118230.0,0.74336]
[1753343189663,0.76331311,118240.0,118230.0,0.74336]
[1753343189958,0.76331311,118240.0,118230.0,1.02700676]
[1753343190352,0.74299895,118240.0,118230.0,1.02700676]
[1753343190551,0.74299895,118240.0,118230.0,1.19607546]
[1753343190747,0.23649895,118240.0,118230.0,1.19607546]
[1753343190946,0.06744455,118240.0,118230.0,1.84052222]
[1753343191160,0.253574,118250.0,118240.0,0.2900244]
[1753343191458,0.31614343,118250.0,118240.0,0.96078116]
[1753343191847,0.34288343,118250.0,118240.0,0.96078116]
[1753343192357,0.34288343,118250.0,118240.0,0.96178116]
[1753343192958,0.3225771,118250.0,118240.0,0.97012986]
[1753343193756,0.2958371,118250.0,118240.0,0.97012986]
[1753343195458,0.2958371,118250.0,118240.0,0.60932986]
[1753343195652,0.2958371,118250.0,118240.0,0.97012986]
[1753343196357,0.4418471,118250.0,118240.0,0.97012986]
[1753343196554,0.4418471,118250.0,118240.0,0.96178116]
[1753343196748,0.4418471,118250.0,118240.0,0.79272676]
[1753343196953,0.4418471,118250.0,118240.0,1.38816676]
[1753343197160,0.4418471,118250.0,118240.0,1.55722116]
[1753343198162,0.4418471,118250.0,118240.0,1.19642116]
[1753343199663,0.4418471,118250.0,118240.0,1.19842116]
[1753343199963,0.4418471,118250.0,118240.0,0.9147744]
[1753343200162,0.4418471,118250.0,118240.0,1.19842116]
[1753343204767,0.3809971,118250.0,118240.0,1.19842116]
[1753343205362,0.2113109,118250.0,118240.0,1.84286792]
[1753343206158,0.2535493,118260.0,118250.0,0.1690401]
[1753343206362,0.2535493,118260.0,118250.0,0.96076686]
[1753343208167,0.2535493,118260.0,118250.0,0.59996686]
[1753343208372,0.2535493,118260.0,118250.0,0.96076686]
[1753343210563,0.1690258,118260.0,118250.0,1.08754036]
[1753343211076,0.1690258,118260.0,118250.0,1.12979936]
[1753343212479,0.1690258,118260.0,118250.0,0.8461526]
[1753343212773,0.1690258,118260.0,118250.0,1.12979936]
[1753343214081,0.1690258,118260.0,118250.0,0.8461526]
[1753343214272,0.1690258,118260.0,118250.0,1.12979936]
[1753343217985,0.1690258,118260.0,118250.0,0.8461526]
[1753343218183,0.1690258,118260.0,118250.0,1.12979936]
[1753343218885,0.1690258,118260.0,118250.0,1.08754036]
[1753343219484,0.1957658,118260.0,118250.0,1.08754036]
[1753343219681,0.1957658,118260.0,118250.0,0.72674036]
[1753343219881,0.1957658,118260.0,118250.0,1.32182036]
[1753343220385,0.1957658,118260.0,118250.0,1.68262036]
[1753343220786,0.1690258,118260.0,118250.0,1.68262036]
[1753343222389,0.2133458,118260.0,118250.0,1.68262036]
[1753343222592,0.2779558,118260.0,118250.0,1.68262036]
[1753343222991,0.3110058,118260.0,118250.0,1.68262036]
[1753343223501,0.3110058,118260.0,118250.0,1.32182036]
[1753343224201,0.3110058,118260.0,118250.0,1.32178036]
[1753343224602,0.3110058,118260.0,118250.0,1.68258036]
[1753343224900,0.3110058,118260.0,118250.0,1.19500686]
[1753343225802,0.2303658,118260.0,118250.0,1.19500686]
[1753343225995,0.1690258,118260.0,118250.0,1.19500686]
[1753343226195,0.1690258,118260.0,118250.0,1.55580686]
[1753343228904,0.1945758,118260.0,118250.0,1.55580686]
[1753343230112,0.1945758,118260.0,118250.0,1.2721601]
[1753343230300,0.1945758,118260.0,118250.0,1.55580686]
[1753343234614,0.1945758,118260.0,118250.0,1.2721601]
[1753343234814,0.1945758,118260.0,118250.0,1.55580686]
[1753343241006,0.1945758,118260.0,118250.0,0.96076686]
[1753343241211,0.1945758,118260.0,118250.0,1.55560686]
[1753343242920,0.69202037,118260.0,118250.0,0.74208]
[1753343243108,0.69202037,118260.0,118250.0,1.02572676]
[1753343244419,0.69202037,118260.0,118250.0,1.02872676]
[1753343244624,0.69202037,118260.0,118250.0,1.00241676]
[1753343245124,0.69202037,118260.0,118250.0,1.03014676]
[1753343246213,0.69202037,118260.0,118250.0,0.9155401]
[1753343246416,0.33122037,118260.0,118250.0,1.19918686]
[1753343246725,0.69202037,118260.0,118250.0,1.03014676]
[1753343247321,0.69202037,118260.0,118250.0,1.19918686]
[1753343247617,0.69202037,118260.0,118250.0,1.03014676]
[1753343248017,0.69202037,118260.0,118250.0,1.19918686]
[1753343248215,0.69202037,118260.0,118250.0,1.03034676]
[1753343248522,0.69202037,118260.0,118250.0,1.19938686]
[1753343248718,0.69202037,118260.0,118250.0,1.03034676]
[1753343252924,0.69202037,118260.0,118250.0,1.02922676]
[1753343254526,0.69202037,118260.0,118250.0,1.19826686]
[1753343254728,0.69202037,118260.0,118250.0,1.02922676]
[1753343254930,0.69202037,118260.0,118250.0,1.19826686]
[1753343255830,0.69202037,118260.0,118250.0,1.02922676]
[1753343256130,0.69202037,118260.0,118250.0,1.19826686]
[1753343257625,0.3110058,118260.0,118250.0,0.9146201]
[1753343257823,0.3110058,118260.0,118250.0,1.19826686]
[1753343258728,0.3110058,118260.0,118250.0,1.02922676]
[1753343258729,0.6718058,118260.0,118250.0,1.02922676]
[1753343259032,0.69183382,118260.0,118250.0,1.02922676]
[1753343259333,0.69183382,118260.0,118250.0,1.19826686]
[1753343260434,0.6718058,118260.0,118250.0,1.19826686]
[1753343261234,0.6718058,118260.0,118250.0,1.12693459]
[1753343262437,0.69183457,118260.0,118250.0,1.12693459]
[1753343262927,0.69183457,118260.0,118250.0,0.36101449]
[1753343263126,0.90414906,118260.0,118250.0,0.95709449]
[1753343263927,0.90414906,118260.0,118250.0,1.12613459]
[1753343264234,0.90414906,118260.0,118250.0,0.95705449]
[1753343264433,0.69183457,118260.0,118250.0,0.95705449]
[1753343265137,0.69183457,118260.0,118250.0,0.36101449]
[1753343265337,0.69183457,118260.0,118250.0,0.95693449]
[1753343265935,0.69183457,118260.0,118250.0,1.12597459]
[1753343266136,0.69183457,118260.0,118250.0,0.53005459]
[1753343266434,0.69183457,118260.0,118250.0,1.12577459]
[1753343267036,0.90414906,118260.0,118250.0,1.12577459]
[1753343267237,0.90414906,118260.0,118250.0,1.12553459]
[1753343267532,0.69183457,118260.0,118250.0,1.12553459]
[1753343268131,0.69183457,118260.0,118250.0,0.53005459]
[1753343268332,0.69183457,118260.0,118250.0,1.12533459]
[1753343269133,0.69183457,118260.0,118250.0,0.53005459]
[1753343269429,0.69183457,118260.0,118250.0,1.12533459]
[1753343270140,0.69183457,118260.0,118250.0,0.53005459]
[1753343270337,0.69183457,118260.0,118250.0,1.12641459]
[1753343271232,0.69183457,118260.0,118250.0,0.95713449]
[1753343271539,0.69183457,118260.0,118250.0,1.12617459]
[1753343271840,0.69183457,118260.0,118250.0,0.74482]
[1753343272040,0.90414906,118260.0,118250.0,0.95713449]
[1753343272231,0.90414906,118260.0,118250.0,0.95721449]
[1753343272427,0.69183457,118260.0,118250.0,0.95721449]
[1753343273132,0.69183457,118260.0,118250.0,0.36101449]
[1753343273333,0.69183457,118260.0,118250.0,0.95725449]
[1753343273642,0.90414906,118260.0,118250.0,1.12629459]
[1753343273833,0.90414906,118260.0,118250.0,0.95725449]
[1753343274040,0.90414906,118260.0,118250.0,1.12629459]
[1753343274235,0.90414906,118260.0,118250.0,1.12633459]
[1753343274742,0.90414906,118260.0,118250.0,0.9140201]
[1753343274935,0.90414906,118260.0,118250.0,0.95729449]
[1753343275130,0.90414906,118260.0,118250.0,0.36101449]
[1753343275335,0.90414906,118260.0,118250.0,0.95705449]
[1753343275537,0.69183457,118260.0,118250.0,1.12609459]
[1753343275835,0.90414906,118260.0,118250.0,1.12609459]
[1753343276036,0.69183457,118260.0,118250.0,1.12609459]
[1753343276238,0.69183457,118260.0,118250.0,0.9135801]
[1753343276544,0.69183457,118260.0,118250.0,1.12589459]
[1753343276839,0.69183457,118260.0,118250.0,0.9135801]
[1753343277039,0.69183457,118260.0,118250.0,1.12589459]
[1753343277337,0.69183457,118260.0,118250.0,1.12609459]
[1753343278141,0.69183457,118260.0,118250.0,0.53005459]
[1753343278328,0.69183457,118260.0,118250.0,0.9136201]
[1753343278528,0.69183457,118260.0,118250.0,1.12593459]
[1753343279232,0.69183457,118260.0,118250.0,1.12573459]
[1753343280139,0.69183457,118260.0,118250.0,0.53005459]
[1753343280342,0.69183457,118260.0,118250.0,1.12553459]
[1753343281342,0.69183457,118260.0,118250.0,1.12529459]
[1753343281537,0.69183457,118260.0,118250.0,0.95625449]
[1753343281737,0.69183457,118260.0,118250.0,1.12529459]
[1753343281934,0.69183457,118260.0,118250.0,0.74394]
[1753343282148,0.69183457,118260.0,118250.0,0.36101449]
[1753343282441,0.69183457,118260.0,118250.0,1.12509459]
[1753343282741,0.90414906,118260.0,118250.0,1.12509459]
[1753343283244,0.90414906,118260.0,118250.0,1.12521459]
[1753343283543,0.33103457,118260.0,118250.0,1.12521459]
[1753343283743,0.69183457,118260.0,118250.0,1.12521459]
[1753343284243,0.69183457,118260.0,118250.0,1.12513459]
[1753343285142,0.69183457,118260.0,118250.0,0.53005459]
[1753343285345,0.69183457,118260.0,118250.0,1.12505459]
[1753343288748,0.69183457,118260.0,118250.0,1.12705459]
[1753343289451,0.69183457,118260.0,118250.0,1.12805459]
[1753343292057,0.33103457,118260.0,118250.0,1.12805459]
[1753343292259,0.69183457,118260.0,118250.0,1.12805459]
[1753343296466,0.33103457,118260.0,118250.0,1.12805459]
[1753343298059,0.33124794,118260.0,118250.0,1.12805459]
[1753343298366,0.69204794,118260.0,118250.0,1.12805459]
[1753343303768,0.69204794,118260.0,118250.0,0.9157401]
[1753343304066,0.69204794,118260.0,118250.0,1.12805459]
[1753343306470,0.33124794,118260.0,118250.0,1.12805459]
[1753343308469,0.18926794,118260.0,118250.0,1.70116908]
[1753343308669,0.1690258,118260.0,118250.0,1.70116908]
[1753343309969,0.1690258,118260.0,118250.0,1.10616908]
[1753343311369,0.1892633,118260.0,118250.0,1.70096908]
[1753343311570,0.1892633,118260.0,118250.0,1.2763401]
[1753343311771,0.1892633,118260.0,118250.0,1.70096908]
[1753343312173,0.1892634,118260.0,118250.0,1.70096908]
[1753343313177,0.1892634,118260.0,118250.0,1.2763401]
[1753343313362,0.1892634,118260.0,118250.0,1.70096908]
[1753343316172,0.1690258,118260.0,118250.0,1.70096908]
[1753343320176,0.2276758,118260.0,118250.0,1.70096908]
[1753343321781,0.1690258,118260.0,118250.0,1.70096908]
[1753343322082,0.1690258,118260.0,118250.0,1.2763401]
[1753343322282,0.1690258,118260.0,118250.0,1.70096908]
[1753343325481,0.1690258,118260.0,118250.0,1.34016908]
[1753343326182,0.1935358,118260.0,118250.0,0.74536908]
[1753343326488,0.1935358,118260.0,118250.0,1.34000908]
[1753343326679,0.2102258,118260.0,118250.0,1.34000908]
[1753343327182,0.23050962,118260.0,118250.0,0.74536908]
[1753343327387,0.23050962,118260.0,118250.0,1.33996908]
[1753343327688,0.2102258,118260.0,118250.0,0.74536908]
[1753343327876,0.90080402,118260.0,118250.0,0.95857449]
[1753343328884,0.90080402,118260.0,118250.0,0.74626]
[1753343329092,0.90080402,118260.0,118250.0,0.95857449]
[1753343330085,0.68848953,118260.0,118250.0,1.12761459]
[1753343330281,0.90080402,118260.0,118250.0,1.12761459]
[1753343330485,0.27014953,118260.0,118250.0,1.33992908]
[1753343330688,0.20599953,118260.0,118250.0,1.33992908]
[1753343330882,0.18930953,118260.0,118250.0,1.70072908]
[1753343331088,0.1690258,118260.0,118250.0,1.70072908]
[1753343331480,0.1690258,118260.0,118250.0,1.33992908]
[1753343331884,0.5932158,118260.0,118250.0,0.9153001]
[1753343332184,0.30176938,118260.0,118250.0,1.12761459]
[1753343332495,0.3074058,118260.0,118250.0,0.9152601]
[1753343332690,0.3074058,118260.0,118250.0,1.12757459]
[1753343332884,0.90080373,118260.0,118250.0,0.36401449]
[1753343333192,0.90080373,118260.0,118250.0,0.95853449]
[1753343333894,0.90080373,118260.0,118250.0,0.95849449]
[1753343334094,0.90080373,118260.0,118250.0,0.74618]
[1753343334297,0.90080373,118260.0,118250.0,0.95849449]
[1753343335287,1.42311822,118260.0,118250.0,0.1517]
[1753343335492,1.42311822,118260.0,118250.0,0.003]
[1753343336894,1.11311822,118260.0,118250.0,0.003]
[1753343337095,1.43311822,118260.0,118250.0,0.003]
[1753343337689,1.55989392,118260.0,118250.0,0.001]
[1753343337996,0.83526494,118260.0,118250.0,0.001]
[1753343338293,1.58989392,118260.0,118250.0,0.001]
[1753343340096,0.3074344,118240.0,118230.0,0.35059449]
[1753343340291,1.09286338,118240.0,118230.0,0.70804]
[1753343340496,0.2253987,118230.0,118220.0,0.94499449]
[1753343340799,0.2253987,118230.0,118220.0,1.11407749]
[1753343340800,0.88056319,118230.0,118220.0,1.11407749]
[1753343340999,0.88056319,118230.0,118220.0,0.94499449]
[1753343341201,0.6682487,118230.0,118220.0,0.73268]
[1753343341398,0.6682487,118230.0,118220.0,0.901763]
[1753343341701,0.67663,118230.0,118220.0,0.901763]
[1753343341998,1.3198947,118230.0,118220.0,0.004]
[1753343342302,1.3198947,118230.0,118220.0,0.007]
[1753343342894,0.3066073,118210.0,118200.0,0.78336]
[1753343343094,0.950672,118210.0,118200.0,0.78336]
[1753343343603,0.950672,118210.0,118200.0,0.1635]
[1753343343794,1.39890534,118210.0,118200.0,0.0499]
[1753343343994,1.99330534,118210.0,118200.0,0.0499]
[1753343344208,1.99330534,118210.0,118200.0,0.0609]
[1753343345001,1.99330534,118210.0,118200.0,0.0569]
[1753343345198,1.99330534,118210.0,118200.0,0.0519]
[1753343346296,1.33004064,118210.0,118200.0,0.2210116]
[1753343346497,1.61330534,118210.0,118200.0,0.2210116]
[1753343346798,1.61330534,118210.0,118200.0,0.0519]
[1753343347498,1.61330534,118210.0,118200.0,0.2210116]
[1753343348207,1.92330534,118210.0,118200.0,0.0519]
[1753343348401,1.32890534,118210.0,118200.0,0.0519]
[1753343348705,1.92330534,118210.0,118200.0,0.0519]
[1753343354103,2.28410534,118210.0,118200.0,0.0519]
[1753343357801,2.00084064,118210.0,118200.0,0.0519]
[1753343358003,2.28410534,118210.0,118200.0,0.0519]
[1753343361513,2.28410534,118210.0,118200.0,0.026342]
[1753343361715,1.73198174,118210.0,118200.0,0.0243]
[1753343361911,2.32630174,118210.0,118200.0,0.0243]
[1753343362214,0.2239659,118190.0,118180.0,0.73338]
[1753343362512,0.6674359,118190.0,118180.0,0.73338]
[1753343364014,0.6674359,118190.0,118180.0,0.73538]
[1753343364219,0.6674359,118190.0,118180.0,0.73738]
[1753343364812,0.6674359,118190.0,118180.0,0.14306]
[1753343366914,0.67602367,118190.0,118180.0,0.14306]
[1753343369610,0.95928837,118190.0,118180.0,0.14306]
[1753343370612,1.55348837,118190.0,118180.0,0.14306]
[1753343370807,1.35979545,118190.0,118180.0,0.14306]
[1753343371012,1.95395545,118190.0,118180.0,0.004]
[1753343371219,1.91395545,118190.0,118180.0,0.004]
[1753343373018,2.27475545,118190.0,118180.0,0.004]
[1753343373221,2.44397945,118190.0,118180.0,0.004]
[1753343374615,0.3082946,118170.0,118160.0,0.13949]
[1753343374815,1.5464393,118170.0,118160.0,0.13949]
[1753343375823,1.5464393,118170.0,118160.0,0.14349]
[1753343376222,1.5464393,118170.0,118160.0,0.3126589]
[1753343376526,1.2631746,118170.0,118160.0,0.5959236]
[1753343376726,1.28362794,118170.0,118160.0,0.5959236]
[1753343377022,1.28362794,118170.0,118160.0,0.5989236]
[1753343377427,0.68954794,118170.0,118160.0,0.5989236]
[1753343377622,0.68954794,118170.0,118160.0,0.3156589]
[1753343377826,0.68954794,118170.0,118160.0,0.5989236]
[1753343379128,0.68954794,118170.0,118160.0,0.14649]
[1753343379329,0.6690946,118170.0,118160.0,0.4297547]
[1753343379530,0.68952897,118170.0,118160.0,0.4297547]
[1753343379719,0.68952897,118170.0,118160.0,0.5989236]
[1753343380130,0.68952897,118170.0,118160.0,0.4297547]
[1753343380331,0.6690946,118170.0,118160.0,0.14649]
[1753343380518,0.6690946,118170.0,118160.0,0.3156589]
[1753343383129,0.6690946,118170.0,118160.0,0.14649]
[1753343383333,0.6690946,118170.0,118160.0,0.4297547]
[1753343383834,0.6690946,118170.0,118160.0,0.5989236]
[1753343384036,0.6690946,118170.0,118160.0,0.3156589]
[1753343384629,0.6690946,118170.0,118160.0,0.14649]
[1753343384834,0.6690946,118170.0,118160.0,0.3156589]
[1753343386230,0.97275054,118170.0,118160.0,0.05872]
[1753343386432,0.97275054,118170.0,118160.0,0.12195]
[1753343386632,0.97275054,118170.0,118160.0,0.05872]
[1753343387441,0.97275054,118170.0,118160.0,0.007]
[1753343387936,1.65355054,118170.0,118160.0,0.007]
[1753343390634,1.69355054,118170.0,118160.0,0.007]
[1753343390835,1.05028584,118170.0,118160.0,0.007]
[1753343391037,1.69355054,118170.0,118160.0,0.007]
[1753343392549,1.35355054,118170.0,118160.0,0.007]
[1753343393539,1.70355054,118170.0,118160.0,0.007]
[1753343394242,1.70356228,118170.0,118160.0,0.007]
[1753343398736,1.42029758,118170.0,118160.0,0.007]
[1753343398942,2.29724228,118170.0,118160.0,0.007]
[1753343399542,2.29824228,118170.0,118160.0,0.003]
[1753343400248,1.64497758,118170.0,118160.0,0.3623747]
[1753343400440,1.05129758,118170.0,118160.0,0.4227547]
[1753343400644,0.69049758,118170.0,118160.0,0.5919236]
[1753343400950,0.92337758,118170.0,118160.0,0.5919236]
[1753343401547,0.92337758,118170.0,118160.0,0.3086589]
[1753343401745,0.92337758,118170.0,118160.0,0.5919236]
[1753343402351,0.32969758,118170.0,118160.0,0.4227547]
[1753343402546,0.19055758,118170.0,118160.0,1.8296283]
[1753343402749,0.19055758,118170.0,118160.0,1.5463636]
[1753343403849,0.19055758,118170.0,118160.0,1.1855636]
[1753343404250,0.19055758,118170.0,118160.0,1.5463636]
[1753343406052,0.19055758,118170.0,118160.0,1.8296283]
[1753343406346,0.02140298,118170.0,118160.0,1.8296283]
[1753343406554,0.02140298,118170.0,118160.0,2.2488843]
[1753343407452,0.001,118170.0,118160.0,2.2488843]
[1753343407649,0.001,118170.0,118160.0,2.2498843]
[1753343408248,0.2114182,118190.0,118180.0,0.3096502]
[1753343408449,0.18946489,118190.0,118180.0,1.6740837]
[1753343408755,1.68946489,118190.0,118180.0,1.7163678]
[1753343408953,1.68946489,118190.0,118180.0,1.72483711]
[1753343409947,1.69046489,118190.0,118180.0,1.72483711]
[1753343410754,1.69146489,118190.0,118180.0,1.72483711]
[1753343411555,1.68946489,118190.0,118180.0,1.72483711]
[1753343411756,1.68946489,118190.0,118180.0,1.72583711]
[1753343412156,1.68946489,118190.0,118180.0,1.44257241]
[1753343412348,1.68946489,118190.0,118180.0,1.72583711]
[1753343412549,1.71380489,118190.0,118180.0,1.72583711]
[1753343412951,1.71380489,118190.0,118180.0,1.4341031]
[1753343413158,1.71380489,118190.0,118180.0,1.6750837]
[1753343415958,1.71380489,118190.0,118180.0,1.68351762]
[1753343416158,1.71380489,118190.0,118180.0,1.6750837]
[1753343416358,1.77229489,118190.0,118180.0,1.6750837]
[1753343417558,1.71380489,118190.0,118180.0,1.6750837]
[1753343418265,1.71380489,118190.0,118180.0,1.68367125]
[1753343418465,1.71380489,118190.0,118180.0,1.40040655]
[1753343418657,1.77229489,118190.0,118180.0,1.68367125]
[1753343419058,1.7519559,118190.0,118180.0,1.68367125]
[1753343419961,1.7519559,118190.0,118180.0,1.6750837]
[1753343423165,1.7519559,118190.0,118180.0,1.0815637]
[1753343423363,1.7519559,118190.0,118180.0,1.6748037]
[1753343423966,1.7519559,118190.0,118180.0,1.5479549]
[1753343424168,2.1127559,118190.0,118180.0,0.593915]
[1753343424366,2.1127559,118190.0,118180.0,1.187155]
[1753343425456,2.1127559,118190.0,118180.0,0.9928847]
[1753343426056,2.1127559,118190.0,118180.0,0.3996447]
[1753343426260,2.1127559,118190.0,118180.0,0.70958]
[1753343426763,2.1127559,118190.0,118180.0,0.8787203]
[1753343426967,2.1127559,118190.0,118180.0,0.9038503]
[1753343427571,2.1127559,118190.0,118180.0,0.73471]
[1753343428168,0.6685759,118190.0,118180.0,0.9038503]
[1753343428669,2.1685759,118190.0,118180.0,0.9038503]
[1753343429058,2.1685759,118190.0,118180.0,1.187115]
[1753343432663,0.2492859,118190.0,118180.0,1.547915]
[1753343432864,0.2094459,118190.0,118180.0,1.547915]
[1753343433065,0.1691259,118190.0,118180.0,1.547915]
[1753343433266,1.6691259,118190.0,118180.0,1.547915]
[1753343434770,1.6928059,118190.0,118180.0,1.547915]
[1753343435973,1.7479059,118190.0,118180.0,1.547915]